bitfinex/quotes_SOLUSD_20250301
["timestamp","ask_amount","ask_price","bid_price","bid_amount"]
[1740813394751,80.7,143.49,143.47,0.063]
[1740813396454,5.5756,143.48,143.47,0.063]
[1740813397145,9.10328096,143.49,143.47,0.063]
[1740813397858,20.0,143.48,143.47,0.063]
[1740813398264,9.10328096,143.49,143.47,0.063]
[1740813400144,20.0,143.48,143.47,0.063]
[1740813400850,9.10318096,143.49,143.47,0.063]
[1740813402575,20.64964886,143.48,143.47,0.063]
[1740813404155,26.22524886,143.48,143.46,0.063]
[1740813405068,18.64964886,143.47,143.46,0.063]
[1740813405244,28.22564886,143.47,143.46,0.0001]
[1740813406573,29.79574886,143.47,143.44,0.0001]
[1740813406759,4.0,143.45,143.44,0.0001]
[1740813407068,6.16,143.46,143.44,0.0001]
[1740813408564,5.5768,143.45,143.44,0.0001]
[1740813410655,9.0353357,143.45,143.44,0.0001]
[1740813412670,29.68498456,143.45,143.44,0.0001]
[1740813412871,31.68498456,143.45,143.44,0.0001]
[1740813415360,27.5776,143.43,143.42,0.063]
[1740813416581,29.5776,143.43,143.42,0.0001]
[1740813416776,22.64964886,143.41,143.4,0.0001]
[1740813416984,28.80964886,143.41,143.4,0.0001]
[1740813417361,28.80964886,143.41,143.38,0.063]
[1740813417362,2.0,143.39,143.38,0.0001]
[1740813417558,4.0,143.39,143.38,0.0001]
[1740813417771,2.0,143.39,143.38,0.0001]
[1740813418158,42.64964886,143.39,143.38,0.0001]
[1740813418759,46.22874886,143.39,143.38,0.0001]
[1740813418971,44.22874886,143.39,143.38,0.0001]
[1740813420365,46.22874886,143.39,143.38,0.0001]
[1740813420560,44.22874886,143.39,143.38,0.0001]
[1740813420782,5.5788,143.4,143.38,0.0001]
[1740813421589,26.22844886,143.4,143.38,0.0001]
[1740813421762,20.0,143.37,143.32,0.063]
[1740813423479,20.0,143.37,143.32,5.6448]
[1740813423671,25.5799,143.37,143.32,5.6448]
[1740813425387,25.5799,143.37,143.32,0.063]
[1740813425767,6.16,143.36,143.32,0.063]
[1740813426758,11.76449469,143.36,143.32,0.063]
[1740813427571,6.16,143.36,143.32,0.063]
[1740813427974,11.7404,143.36,143.32,0.063]
[1740813429689,17.27767596,143.36,143.32,0.063]
[1740813429890,20.0,143.33,143.32,0.063]
[1740813431872,44.23114886,143.33,143.32,0.063]
[1740813432066,25.5815,143.33,143.32,0.063]
[1740813432375,11.69727596,143.36,143.32,0.063]
[1740813432585,5.5808,143.35,143.32,0.063]
[1740813433798,20.0,143.33,143.32,0.063]
[1740813436195,80.7,143.35,143.33,1.6122]
[1740813436370,6.16,143.36,143.33,1.6122]
[1740813437605,20.0,143.36,143.33,1.6122]
[1740813437791,20.0,143.35,143.33,7.1936]
[1740813440004,20.0,143.35,143.33,1.6122]
[1740813445292,20.0,143.35,143.33,7.1937]
[1740813446768,20.0,143.35,143.33,7.2567]
[1740813447796,20.0,143.35,143.33,1.6752]
[1740813449983,20.0,143.35,143.33,0.063]
[1740813450177,5.5808,143.35,143.33,0.063]
[1740813451902,80.7,143.34,143.33,0.063]
[1740813452089,86.2811,143.34,143.33,0.063]
[1740813452495,80.7,143.34,143.33,0.063]
[1740813457408,0.03,143.37,143.33,0.063]
[1740813457602,20.0,143.35,143.33,0.063]
[1740813464710,0.03,143.37,143.33,0.063]
[1740813464913,0.03,143.37,143.33,1.7286]
[1740813466904,0.03,143.37,143.34,5.5811]
[1740813469214,0.03,143.37,143.35,18.64964886]
[1740813471434,0.03,143.37,143.36,5.5803]
[1740813476018,0.03,143.37,143.36,11.5994]
[1740813477412,0.03,143.37,143.34,59.7925]
[1740813479026,0.03,143.37,143.34,65.3735]
[1740813479240,20.03,143.37,143.34,65.3735]
[1740813479543,20.03,143.37,143.34,59.7925]
[1740813480243,0.03,143.37,143.34,59.7925]
[1740813480437,0.03,143.37,143.34,65.3735]
[1740813481627,0.03,143.37,143.34,5.644]
[1740813483147,0.03,143.37,143.34,0.063]
[1740813485924,0.03,143.37,143.34,18.71264886]
[1740813487258,0.03,143.37,143.35,5.5807]
[1740813493648,0.03,143.37,143.35,65.3102]
[1740813497546,0.03,143.37,143.36,20.27334886]
[1740813498862,0.03,143.37,143.36,25.85364886]
[1740813500055,0.03,143.37,143.36,85.58314886]
[1740813504354,0.03,143.37,143.36,223.58314886]
[1740813504654,0.03,143.46,143.36,246.07884886]
[1740813504863,20.0,143.45,143.38,18.64964886]
[1740813505853,20.0,143.45,143.4,18.64964886]
[1740813506040,20.0,143.45,143.4,78.37914886]
[1740813506959,20.0,143.45,143.4,83.95754886]
[1740813507555,0.03,143.46,143.4,83.95754886]
[1740813507759,0.03,143.46,143.4,97.90454886]
[1740813508341,0.03,143.46,143.42,18.64964886]
[1740813508541,0.03,143.46,143.42,24.80964886]
[1740813509166,0.03,143.46,143.43,5.5776]
[1740813509463,0.03,143.46,143.43,203.3071]
[1740813511470,0.03,143.46,143.43,59.7295]
[1740813511649,0.03,143.46,143.38,30.38914886]
[1740813511851,0.03,143.46,143.38,228.11864886]
[1740813512559,5.6064,143.46,143.38,221.95864886]
[1740813512756,5.6064,143.46,143.38,228.11864886]
[1740813514959,0.03,143.46,143.38,228.11864886]
[1740813516972,0.03,143.46,143.38,242.06754886]
[1740813521271,0.03,143.46,143.39,18.64964886]
[1740813521667,0.03,143.46,143.41,18.64964886]
[1740813521867,0.03,143.46,143.41,78.37914886]
[1740813522977,0.03,143.46,143.42,5.578]
[1740813526377,0.03,143.46,143.43,18.64964886]
[1740813527276,0.03,143.46,143.44,5.5772]
[1740813529873,0.03,143.46,143.43,78.37914886]
[1740813530184,0.03,143.46,143.45,18.64964886]
[1740813531172,0.03,143.46,143.45,24.22644886]
[1740813532185,0.03,143.46,143.45,83.95594886]
[1740813550982,0.03,143.46,143.44,5.5771]
[1740813551183,0.03,143.46,143.43,203.8695]
[1740813551994,0.03,143.46,143.43,197.7295]
[1740813552396,0.03,143.46,143.42,1.0]
[1740813554119,5.6064,143.46,143.42,1.0]
[1740813555011,0.03,143.46,143.42,1.0]
[1740813556545,1.5947,143.44,143.42,1.0]
[1740813557611,20.0,143.43,143.42,1.0]
[1740813558210,25.5776,143.43,143.42,1.0]
[1740813558924,44.22724886,143.43,143.37,0.063]
[1740813559232,58.17124886,143.43,143.37,0.063]
[1740813559919,25.5776,143.43,143.37,0.063]
[1740813560126,18.00263262,143.44,143.37,5.6429]
[1740813560306,18.56533262,143.44,143.37,5.6429]
[1740813560725,24.14253262,143.44,143.37,5.6429]
[1740813561129,13.3119,143.44,143.37,5.6429]
[1740813561830,13.3119,143.44,143.37,0.063]
[1740813562047,18.64964886,143.43,143.37,0.063]
[1740813562723,84.14373603,143.42,143.37,0.063]
[1740813563215,80.7,143.42,143.37,0.063]
[1740813563927,5.5784,143.41,143.37,0.063]
[1740813567930,5.5791,143.39,143.37,0.063]
[1740813568118,86.86,143.38,143.37,0.063]
[1740813568319,7.7761,143.38,143.37,0.063]
[1740813568635,7.7761,143.38,143.36,0.063]
[1740813569237,80.7,143.37,143.36,0.063]
[1740813570347,86.2799,143.37,143.36,0.063]
[1740813570838,5.5799,143.37,143.36,0.063]
[1740813571227,11.09233764,143.37,143.36,0.063]
[1740813571438,7.7761,143.38,143.36,0.063]
[1740813571645,13.3557,143.38,143.36,0.063]
[1740813571831,11.7396,143.38,143.36,0.063]
[1740813572545,6.16,143.38,143.36,0.063]
[1740813572749,80.7,143.4,143.36,0.063]
[1740813572927,6.16,143.41,143.36,0.063]
[1740813573734,86.86,143.42,143.36,0.063]
[1740813574441,80.7,143.42,143.36,0.063]
[1740813579948,80.73,143.42,143.36,0.063]
[1740813581052,86.3081,143.42,143.36,0.063]
[1740813582232,100.2531,143.42,143.36,0.063]
[1740813582639,20.0,143.38,143.36,0.063]
[1740813582838,26.16,143.38,143.36,0.063]
[1740813584652,5.5799,143.37,143.36,0.063]
[1740813585030,31.7396,143.38,143.36,0.063]
[1740813585947,80.7,143.37,143.36,0.063]
[1740813586125,86.2799,143.37,143.36,0.063]
[1740813586525,80.7,143.37,143.36,0.063]
[1740813590351,11.7384,143.41,143.36,0.063]
[1740813590549,92.4384,143.41,143.36,0.063]
[1740813591349,86.86,143.41,143.36,0.063]
[1740813592361,0.03,143.37,143.36,0.063]
[1740813607353,5.6099,143.37,143.36,0.063]
[1740813612074,0.03,143.37,143.36,0.063]
[1740813621385,18.67964886,143.37,143.36,0.063]
[1740813621564,18.67964886,143.37,143.36,0.0001]
[1740813621983,38.64964886,143.34,143.33,0.043]
[1740813622182,44.80964886,143.34,143.32,0.043]
[1740813623561,26.16,143.34,143.32,0.043]
[1740813625087,31.7412,143.34,143.32,0.043]
[1740813626092,26.16,143.34,143.32,0.043]
[1740813627192,80.7,143.33,143.32,0.043]
[1740813630173,80.7,143.35,143.32,0.043]
[1740813633095,80.7,143.35,143.33,1.5459]
[1740813633282,0.03,143.37,143.33,1.5459]
[1740813633600,0.03,143.37,143.34,5.5811]
[1740813634188,80.7,143.36,143.32,0.043]
[1740813634387,80.7,143.36,143.32,5.6248]
[1740813635475,80.7,143.36,143.32,0.043]
[1740813635704,80.7,143.35,143.32,0.043]
[1740813637493,5.5811,143.34,143.32,0.043]
[1740813637685,80.7,143.33,143.32,0.043]
[1740813639278,86.2815,143.33,143.32,0.043]
[1740813640514,80.7,143.33,143.32,0.043]
[1740813642104,80.7,143.35,143.32,0.043]
[1740813645096,80.7,143.35,143.32,5.6249]
[1740813645905,80.7,143.35,143.32,0.043]
[1740813647989,6.16,143.36,143.32,0.043]
[1740813648192,80.73,143.37,143.32,0.043]
[1740813649911,0.03,143.37,143.34,20.64964886]
[1740813650216,0.03,143.37,143.36,18.64964886]
[1740813650515,0.03,143.42,143.36,78.37914886]
[1740813651421,0.03,143.42,143.37,5.5799]
[1740813651598,0.03,143.42,143.37,19.5298]
[1740813652697,0.03,143.42,143.38,6.1317]
[1740813652896,0.03,143.42,143.39,5.5791]
[1740813658625,0.03,143.42,143.4,1.5367]
[1740813660316,0.03,143.42,143.39,5.5791]
[1740813669746,0.03,143.42,143.39,19.527]
[1740813669944,0.03,143.42,143.41,1.5367]
[1740813670248,0.03,143.42,143.41,20.18634886]
[1740813670610,0.03,143.42,143.41,25.76474886]
[1740813674760,0.03,143.42,143.41,223.49424886]
[1740813680643,0.03,143.42,143.41,85.49424886]
[1740813683055,0.0001,143.42,143.41,85.49424886]
[1740813683258,0.0001,143.42,143.41,225.49424886]
[1740813683846,0.03,143.46,143.43,2.0]
[1740813684052,0.03,143.46,143.45,24.22644886]
[1740813685934,0.03,143.46,143.45,5.5768]
[1740813686141,0.03,143.46,143.44,11.7172]
[1740813689259,0.03,143.46,143.44,6.14]
[1740813689457,0.03,143.46,143.43,65.3069]
[1740813689847,0.03,143.46,143.43,59.7295]
[1740813691571,0.03,143.46,143.43,65.307]
[1740813699148,0.03,143.46,143.43,79.251]
[1740813702963,0.03,143.46,143.43,59.7295]
[1740813703647,0.03,143.46,143.41,5.5783]
[1740813703849,0.03,143.46,143.39,5.5791]
[1740813704047,0.03,143.46,143.39,65.3086]
[1740813708549,80.73,143.46,143.39,65.3086]
[1740813710259,86.3068,143.46,143.39,65.3086]
[1740813710463,80.73,143.46,143.39,65.3086]
[1740813711481,86.3065,143.46,143.39,65.3086]
[1740813717791,7.5964,143.44,143.38,5.6424]
[1740813717973,7.5964,143.44,143.38,0.063]
[1740813719390,5.5776,143.43,143.38,0.063]
[1740813721092,20.0,143.4,143.38,0.063]
[1740813721299,27.5964,143.39,143.38,0.063]
[1740813721991,32.10041615,143.39,143.37,0.063]
[1740813722288,105.48964886,143.38,143.37,0.063]
[1740813722881,105.48964886,143.38,143.37,0.0001]
[1740813723286,20.0,143.34,143.32,0.043]
[1740813723487,80.7,143.36,143.32,0.043]
[1740813724073,20.4203,143.33,143.32,0.043]
[1740813724276,32.6432,143.33,143.32,0.043]
[1740813726302,113.3432,143.33,143.32,0.043]
[1740813727103,32.6432,143.33,143.32,0.043]
[1740813729705,26.5603,143.33,143.32,0.043]
[1740813729987,80.7,143.34,143.32,0.043]
[1740813732591,86.2811,143.34,143.32,0.043]
[1740813733119,99.34964886,143.33,143.28,0.063]
[1740813733315,6.14,143.32,143.28,0.063]
[1740813734098,6.14,143.32,143.31,0.063]
[1740813734515,6.14,143.32,143.24,5.274]
[1740813734716,80.7,143.31,143.24,5.274]
[1740813735289,91.3319,143.3,143.23,0.063]
[1740813735717,20.0,143.27,143.23,0.063]
[1740813736009,80.7,143.26,143.23,0.063]
[1740813736397,1.5473,143.25,143.23,0.063]
[1740813737818,86.2842,143.26,143.23,0.063]
[1740813738393,80.7,143.26,143.23,0.063]
[1740813739315,86.2842,143.26,143.23,0.063]
[1740813740716,80.7,143.26,143.23,0.063]
[1740813745901,82.2772,143.3,143.23,0.063]
[1740813746216,80.7,143.3,143.23,18.71264886]
[1740813746398,6.16,143.31,143.23,78.44214886]
[1740813747212,11.7423,143.31,143.24,6.3126]
[1740813747414,11.7423,143.31,143.23,59.7925]
[1740813748110,80.7,143.3,143.24,5.585]
[1740813748906,86.2829,143.3,143.24,5.585]
[1740813750509,80.7,143.3,143.24,5.585]
[1740813751823,80.7,143.3,143.25,1.6231]
[1740813752028,11.7412,143.34,143.26,18.64964886]
[1740813752230,86.2812,143.34,143.26,78.37914886]
[1740813752528,86.2812,143.34,143.27,6.126]
[1740813752529,80.7,143.34,143.27,6.126]
[1740813752735,86.2812,143.34,143.28,5.5834]
[1740813752922,6.16,143.35,143.29,18.64964886]
[1740813753129,6.16,143.35,143.29,59.7295]
[1740813753130,11.7407,143.35,143.29,59.7295]
[1740813754228,11.7407,143.35,143.29,65.3124]
[1740813754423,11.7407,143.35,143.29,59.7295]
[1740813754624,11.7407,143.35,143.29,65.3124]
[1740813756328,80.7,143.34,143.27,6.126]
[1740813756634,80.7,143.33,143.25,1.6231]
[1740813756827,80.7,143.32,143.25,1.6231]
[1740813757923,5.5823,143.31,143.25,1.6231]
[1740813758107,6.14,143.3,143.25,7.2076]
[1740813758518,80.7,143.32,143.25,7.2076]
[1740813759242,86.2819,143.32,143.25,7.2076]
[1740813759413,86.2819,143.32,143.25,1.6231]
[1740813760714,86.2819,143.32,143.25,7.2076]
[1740813761636,6.14,143.34,143.26,18.64964886]
[1740813761939,80.7,143.34,143.26,78.37914886]
[1740813762631,86.2812,143.34,143.27,5.5838]
[1740813763433,80.7,143.34,143.27,65.3133]
[1740813763636,80.7,143.34,143.28,18.64964886]
[1740813763818,0.03,143.35,143.29,6.0847]
[1740813764722,5.611,143.35,143.29,6.0847]
[1740813765542,5.611,143.35,143.28,59.7295]
[1740813765714,80.7,143.34,143.25,7.7078]
[1740813765919,80.7,143.33,143.25,13.2923]
[1740813767143,5.5819,143.32,143.25,13.2923]
[1740813767518,86.2816,143.33,143.26,18.64964886]
[1740813767722,5.5812,143.34,143.26,78.37914886]
[1740813767928,80.73,143.35,143.26,78.37914886]
[1740813768123,86.3108,143.35,143.26,78.37914886]
[1740813769349,86.3108,143.35,143.27,5.5838]
[1740813770156,86.3108,143.35,143.26,59.7295]
[1740813770325,80.7,143.34,143.25,13.2923]
[1740813771657,86.2815,143.33,143.25,13.2923]
[1740813771952,20.0,143.3,143.25,7.7078]
[1740813772155,80.7,143.29,143.25,7.7078]
[1740813772522,80.7,143.29,143.25,1.6231]
[1740813773660,86.2833,143.29,143.25,1.6231]
[1740813774244,86.2833,143.29,143.24,0.063]
[1740813774949,86.2833,143.29,143.24,5.648]
[1740813775125,80.7,143.29,143.24,5.648]
[1740813775525,80.7,143.29,143.24,0.063]
[1740813776945,86.2831,143.29,143.24,0.063]
[1740813782636,20.0,143.26,143.24,0.063]
[1740813782840,80.7,143.25,143.24,0.063]
[1740813785563,86.2846,143.25,143.24,0.063]
[1740813787960,80.7,143.25,143.24,0.063]
[1740813788964,86.2846,143.25,143.24,0.063]
[1740813791548,5.5846,143.25,143.24,0.063]
[1740813792172,5.5846,143.25,143.22,0.063]
[1740813792173,22.0,143.23,143.22,0.063]
[1740813792356,22.0,143.23,143.21,0.063]
[1740813792357,38.64964886,143.22,143.21,0.063]
[1740813793362,40.64964886,143.22,143.21,0.0001]
[1740813793541,51.899695,143.22,143.21,0.0001]
[1740813794141,2.0,143.21,143.17,0.986106]
[1740813794337,20.0,143.18,143.17,0.986106]
[1740813795671,5.66424614,143.22,143.17,0.986106]
[1740813795972,6.16,143.21,143.17,0.986106]
[1740813796145,86.86,143.21,143.17,0.986106]
[1740813797173,86.86,143.21,143.17,6.573806]
[1740813797558,86.86,143.23,143.17,6.573806]
[1740813797761,86.46,143.23,143.17,6.573806]
[1740813797983,92.0454,143.23,143.17,6.573806]
[1740813798575,86.46,143.23,143.17,6.573806]
[1740813798773,92.0454,143.23,143.17,6.573806]
[1740813799771,86.46,143.23,143.17,6.573806]
[1740813799967,86.46,143.23,143.18,1.5846]
[1740813801377,92.0454,143.23,143.18,1.5846]
[1740813803878,86.46,143.23,143.18,7.1719]
[1740813805085,92.0454,143.23,143.18,7.1719]
[1740813805284,92.0454,143.23,143.18,7.2349]
[1740813806086,92.0454,143.23,143.18,0.063]
[1740813806476,86.46,143.23,143.18,5.6502]
[1740813807588,92.0455,143.23,143.18,5.6502]
[1740813807781,92.0455,143.23,143.18,0.063]
[1740813808792,86.46,143.23,143.18,0.063]
[1740813811377,6.16,143.23,143.18,0.063]
[1740813812290,5.5851,143.24,143.18,0.063]
[1740813812875,92.0747,143.25,143.18,0.063]
[1740813813788,92.0747,143.25,143.18,18.71264886]
[1740813813789,86.49,143.25,143.18,18.71264886]
[1740813814505,6.19,143.25,143.19,5.5869]
[1740813816995,0.03,143.25,143.19,5.5869]
[1740813817505,0.03,143.25,143.2,20.24774886]
[1740813818609,0.03,143.25,143.21,5.5862]
[1740813818781,0.03,143.25,143.21,65.3157]
[1740813819398,0.03,143.25,143.22,6.1973]
[1740813820981,0.03,143.25,143.22,11.7829]
[1740813821706,0.03,143.25,143.22,6.1973]
[1740813822000,0.03,143.25,143.2,7.1846]
[1740813822213,20.03,143.25,143.2,7.1846]
[1740813822913,0.03,143.25,143.2,7.1846]
[1740813827586,0.03,143.25,143.2,1.5981]
[1740813827918,0.03,143.25,143.2,7.1846]
[1740813830818,0.03,143.25,143.2,1.5981]
[1740813831422,0.03,143.25,143.2,7.1846]
[1740813832309,0.03,143.25,143.2,66.9141]
[1740813833115,0.03,143.25,143.21,18.64964886]
[1740813835306,0.03,143.25,143.22,5.5858]
[1740813835615,0.03,143.25,143.23,18.64964886]
[1740813837516,0.03,143.25,143.24,5.585]
[1740813843318,0.03,143.25,143.24,83.96414886]
[1740813843623,0.03,143.25,143.24,91.84594886]
[1740813844116,0.03,143.25,143.24,73.1963]
[1740813846020,0.03,143.25,143.24,91.84594886]
[1740813853824,0.03,143.25,143.24,66.9322]
[1740813855015,0.03,143.25,143.24,59.7295]
[1740813858032,0.03,143.25,143.24,65.3145]
[1740813859235,0.03,143.25,143.24,83.96414886]
[1740813862924,5.75846983,143.35,143.29,20.0]
[1740813863126,0.03,143.35,143.32,18.64964886]
[1740813863328,0.03,143.35,143.32,94.74627827]
[1740813863635,0.03,143.35,143.31,7.7918]
[1740813864539,0.03,143.35,143.3,65.8695]
[1740813865123,0.03,143.35,143.31,5.5823]
[1740813874232,0.03,143.35,143.31,19.538]
[1740813875145,0.03,143.35,143.32,18.64964886]
[1740813875946,0.03,143.35,143.31,19.538]
[1740813878339,0.03,143.35,143.31,5.5823]
[1740813882630,0.03,143.35,143.31,79.2675]
[1740813885539,0.03,143.35,143.31,65.3118]
[1740813885940,0.03,143.35,143.29,5.5829]
[1740813887839,0.03,143.35,143.28,5.5834]
[1740813888438,80.3,143.34,143.27,5.5837]
[1740813889458,80.3,143.34,143.25,1.6134]
[1740813889658,85.8815,143.33,143.26,5.5842]
[1740813890640,85.8815,143.33,143.25,5.6476]
[1740813892058,80.3,143.33,143.25,5.6476]
[1740813892959,80.3,143.33,143.25,19.6092]
[1740813894036,6.0518,143.31,143.25,0.063]
[1740813894243,80.3,143.3,143.25,0.063]
[1740813894943,20.0,143.27,143.25,0.063]
[1740813895143,80.3,143.29,143.25,0.063]
[1740813896164,5.5834,143.28,143.25,0.063]
[1740813896956,80.3,143.29,143.25,0.063]
[1740813897166,85.8831,143.29,143.25,0.063]
[1740813897571,20.0,143.26,143.25,0.063]
[1740813900365,80.3,143.29,143.25,0.063]
[1740813900572,80.3,143.28,143.25,0.063]
[1740813901683,85.8836,143.28,143.25,0.063]
[1740813902655,80.3,143.28,143.25,0.063]
[1740813903984,85.8834,143.28,143.25,0.063]
[1740813904592,20.0,143.26,143.25,0.063]
[1740813906081,25.5842,143.26,143.25,0.063]
[1740813908176,44.23384886,143.26,143.25,0.063]
[1740813908374,25.5842,143.26,143.25,0.063]
[1740813908569,13.3195,143.27,143.25,0.063]
[1740813910872,7.7356,143.27,143.25,0.063]
[1740813911486,86.88,143.27,143.25,0.063]
[1740813911885,6.18,143.27,143.25,0.063]
[1740813912880,0.03,143.28,143.25,0.063]
[1740813920399,0.03,143.28,143.25,18.71264886]
[1740813920690,0.03,143.28,143.26,8.0171]
[1740813921468,0.03,143.28,143.27,5.5838]
[1740813921991,0.03,143.28,143.25,0.063]
[1740813922689,80.7,143.27,143.25,0.063]
[1740813923085,80.7,143.26,143.25,0.063]
[1740813923582,86.2842,143.26,143.25,0.063]
[1740813927387,100.2448,143.26,143.22,0.063]
[1740813927577,20.0,143.23,143.22,0.063]
[1740813928471,86.86,143.24,143.22,0.063]
[1740813928692,5.5854,143.23,143.22,0.063]
[1740813931985,92.445,143.24,143.22,0.063]
[1740813932379,80.7,143.23,143.22,0.063]
[1740813933099,86.2854,143.23,143.22,0.063]
[1740813934495,80.7,143.23,143.22,0.063]
[1740813934883,86.2854,143.23,143.22,0.063]
[1740813936193,5.5854,143.23,143.22,0.063]
[1740813939986,6.16,143.24,143.22,0.063]
[1740813940390,5.5838,143.27,143.22,0.063]
[1740813941195,0.03,143.28,143.22,0.063]
[1740813941403,80.7,143.27,143.22,0.063]
[1740813942186,86.284,143.27,143.22,0.063]
[1740813943105,80.7,143.27,143.22,0.063]
[1740813944207,80.73,143.27,143.22,0.063]
[1740813944503,0.03,143.27,143.22,0.063]
[1740813946702,80.7,143.26,143.22,0.063]
[1740813947809,80.7,143.25,143.22,0.063]
[1740813948108,5.585,143.24,143.22,0.063]
[1740813948298,80.7,143.23,143.22,0.063]
[1740813949897,86.2854,143.23,143.22,0.063]
[1740813950102,80.7,143.23,143.22,0.063]
[1740813952298,86.2854,143.23,143.22,0.063]
[1740813952500,80.7,143.23,143.22,0.063]
[1740813952799,86.2854,143.23,143.22,0.063]
[1740813952995,80.7,143.23,143.22,0.063]
[1740813954393,86.2854,143.23,143.22,0.063]
[1740813956218,80.7,143.23,143.22,0.063]
[1740813958815,86.2854,143.23,143.22,0.063]
[1740813962313,80.7,143.23,143.22,0.063]
[1740813965502,0.03,143.27,143.22,1.643]
[1740813965822,0.03,143.27,143.22,8.2972]
[1740813966727,0.03,143.27,143.23,5.5854]
[1740813973125,0.03,143.27,143.22,8.2972]
[1740813973329,0.03,143.27,143.22,1.643]
[1740813973515,86.84,143.26,143.22,0.063]
[1740813974420,5.5846,143.25,143.22,0.063]
[1740813975832,92.4243,143.26,143.22,0.063]
[1740813977629,101.34964886,143.25,143.19,0.063]
[1740813978131,102.91053748,143.25,143.19,0.063]
[1740813978343,104.91053748,143.25,143.19,0.063]
[1740813979649,19.5475,143.24,143.19,0.063]
[1740813980807,80.7,143.23,143.19,0.063]
[1740813981040,80.7,143.22,143.19,0.063]
[1740813981411,5.5862,143.21,143.19,0.063]
[1740813982823,86.2862,143.21,143.19,0.063]
[1740813993352,5.5862,143.21,143.19,0.063]
[1740813993544,80.7,143.24,143.19,0.063]
[1740813993545,5.5854,143.23,143.19,0.063]
[1740813995626,80.7,143.22,143.19,0.063]
[1740813995820,20.0,143.2,143.19,0.063]
[1740813996027,20.0,143.2,143.18,0.063]
[1740813996444,5.5854,143.23,143.18,0.063]
[1740813996633,0.03,143.25,143.19,1.5638]
[1740813996834,0.03,143.25,143.2,6.4012]
[1740813997848,0.03,143.25,143.19,1.5638]
[1740813998047,6.17,143.25,143.19,1.5638]
[1740813998346,11.7548,143.25,143.19,1.5638]
[1740813999432,86.2851,143.24,143.19,1.5638]
[1740814002340,86.2851,143.24,143.19,7.1507]
[1740814002757,86.2851,143.24,143.19,1.5638]
[1740814004956,86.2851,143.24,143.19,1.6268]
[1740814005157,86.3151,143.24,143.19,1.6268]
[1740814005558,80.7,143.23,143.19,1.6268]
[1740814006353,5.5858,143.22,143.19,1.6268]
[1740814006658,5.5858,143.22,143.19,0.063]
[1740814007547,86.2855,143.23,143.19,0.063]
[1740814018882,0.03,143.24,143.2,7.5332]
[1740814020169,0.03,143.24,143.2,13.1197]
[1740814020369,0.03,143.24,143.2,7.5332]
[1740814022285,0.03,143.24,143.2,13.1197]